Cogmind - Beta 14 @@@ ROGUE MODE // 2024.08.25 @ 16:30:12 Player: Gyro! Result: Destroyed by S-27 Virus with Autogun Performance ------------- Evolutions (4) 2000 Regions Visited (9) 1800 Robots Destroyed (42) 210 Value Destroyed (1306) 1306 Prototype IDs (7) 140 Alien Tech Used (0) 0 Bonus (0) 0 TOTAL SCORE: 5456 Bonus ------- None Cogmind --------- Core Integrity 0/850 Matter 205/300 Energy 98/100 System Corruption 29% Temperature Cool (0) Movement Core (50) Location -6/Factory Parts ------- > --- POWER (3) -------- (None) > --- PROPULSION (3) --- (None) > --- UTILITY (5) ------ (None) > --- WEAPON (4) ------- (None) > --- INVENTORY (5) ---- Improved Heat Sink Improved Shield Generator Recalibrator Peak State ------------ > --- POWER ------------ Nuclear Core > --- PROPULSION ------- Improved VTOL Module Improved VTOL Module Xenon Bombardment Thruster > --- UTILITY ---------- Small Storage Unit Weight Redist. System Advanced Targeting Computer Energy Filter > --- WEAPON ----------- Gatling Laser Improved EM Pulse Cannon > --- INVENTORY -------- Titanium Leg Improved Shield Generator Cooled Particle Cannon [Rating: 34] Favorites ----------- Power Ion Engine Engine Ion Engine Power Core Nuclear Core Propulsion Compact Wheel Leg Flexi-carbon Leg Wheel Compact Wheel Flight Unit Improved VTOL Module Utility Small Storage Unit Device Heat Sink Storage Small Storage Unit Processor Advanced Targeting Computer Protection Light Armor Plating Weapon Field Laser Energy Gun Field Laser Energy Cannon Light EM Pulse Cannon Ballistic Cannon Battle Cannon Launcher Improved Grenade Launcher Special Weapon Mining Laser Build | -11 -10 -9 -8 -7 -7 -7 -6 -6 -6 ------- Run | Yrd Mat Mat Mat Fac Low Low Fac Was Fac Slots Evolved 8 | . . 2 2 2 . . 2 . . Power 2 | . . 1 . 1 . . . . . Propulsion 1 | . . . 1 . . . . . . Utility 3 | . . 1 . 1 . . 1 . . Weapon 2 | . . . 1 . . . 1 . . Parts Attached 87 | 7 1 16 26 18 5 3 2 5 4 Power 16 | 2 1 4 5 1 2 . . . 1 Engine 11 | 2 1 4 4 . . . . . . Core 5 | . . . 1 1 2 . . . 1 Reactor . | . . . . . . . . . . Propulsion 21 | 2 . 2 8 4 . . 2 1 2 Treads . | . . . . . . . . . . Leg 10 | . . . 5 1 . . 2 . 2 Wheel 7 | 2 . 2 3 . . . . . . Hover . | . . . . . . . . . . Flight 4 | . . . . 3 . . . 1 . Utility 15 | 1 . 4 4 5 . . . 1 . Device 11 | . . 3 4 3 . . . 1 . Storage 2 | 1 . . . 1 . . . . . Processor 1 | . . . . 1 . . . . . Hackware . | . . . . . . . . . . Protection 1 | . . 1 . . . . . . . Artifact . | . . . . . . . . . . Weapon 35 | 2 . 6 9 8 3 3 . 3 1 Energy Gun 22 | 2 . 4 7 2 2 1 . 3 1 Energy Cannon 9 | . . 2 1 6 . . . . . Ballistic Gun . | . . . . . . . . . . Ballistic Cannon 1 | . . . . . . 1 . . . Launcher 2 | . . . . . 1 1 . . . Special Weapon 1 | . . . 1 . . . . . . Impact Weapon . | . . . . . . . . . . Slashing Weapon . | . . . . . . . . . . Piercing Weapon . | . . . . . . . . . . Special Melee Weapon . | . . . . . . . . . . Unidentified Prototypes 3 | . . . 1 2 . . . . . Corrupted Parts 2 | . . 1 . . . . . 1 . System Corruption 6 | . . 2 . . . . . 4 . Parts Lost 50 | . 1 11 23 . 5 2 . 2 6 Power 12 | . 1 4 4 . 2 . . . 1 Propulsion 12 | . . 1 5 . 1 . . 2 3 Utility 10 | . . 2 6 . 1 1 . . . Weapon 16 | . . 4 8 . 1 1 . . 2 Highest Loss Streak 11 | . 1 4 11 . 3 2 . 2 3 To Critical Strikes 1 | . . . . . 1 . . . . Average Slot Usage (%) 56 | . 85 76 58 38 64 46 26 23 11 Engine 7 | . 14 14 11 . . . . . . Core 1 | . . . . 3 4 7 . . 2 Leg 2 | . . . 4 . . . 9 5 6 Wheel 10 | . 28 20 10 . . . . . . Flight 4 | . . . . 15 19 15 3 2 1 Device 6 | . . 7 13 4 11 . . . . Storage 6 | . 14 11 3 3 7 7 6 2 . Processor 1 | . . . . 4 7 7 6 2 . Energy Gun 13 | . 28 20 13 4 10 . . 7 1 Peak Build Rating 34 | 6 6 15 21 34 32 23 15 21 20 Average Rating 13 | 4 5 11 11 18 27 17 13 14 9 On Entrance 12 | . 6 6 14 . 32 23 14 14 11 Naked Turns 54 | . . . 24 19 . . . 4 7 Heaviest Build 25 | 14 14 25 25 22 22 5 5 13 7 Greatest Support 42 | 26 26 28 42 22 22 10 37 37 36 Greatest Overweight (x) 3 | . . 1 3 . 1 . . 1 . Average Overweight (x) . | . . . . . . . . . . Largest Inventory Capacity 8 | 8 8 8 8 8 8 8 8 8 5 Average Capacity 7 | 6 8 8 6 6 8 8 8 6 5 Most Carried 8 | 5 6 8 8 6 8 8 8 7 5 Average Carried 5 | 2 4 6 5 4 6 7 7 4 3 Final Capacity 8 | 8 8 8 5 8 8 8 8 5 5 Final Carried 8 | 3 5 7 2 4 8 8 7 5 3 Class Distribution -------------------- 76% | Mutant 17% | Sprinter Dominant Class ---------------- Mutant | -10/Materials Mutant | -9/Materials Mutant | -8/Materials Sprinter | -7/Factory Sprinter | -7/Lower Caves Sprinter | -7/Lower Caves Mutant | -6/Factory Mutant | -6/Waste Mutant | -6/Factory Resources | -11 -10 -9 -8 -7 -7 -7 -6 -6 -6 ----------- Run | Yrd Mat Mat Mat Fac Low Low Fac Was Fac Matter Collected 857 | 270 10 159 181 . 237 . . . . Remotely . | . . . . . . . . . . Salvage Created 1459 | 92 238 646 299 45 139 . . . . Parts 82 | 3 16 36 15 2 10 . . . . Haulers Intercepted 2 | . 1 . . 1 . . . . . Recyclers Shooed . | . . . . . . . . . . Parts Field Recycled . | . . . . . . . . . . Retrieved Matter . | . . . . . . . . . . Parts Self-Destructed 7 | . . . . . 7 . . . . Prevented . | . . . . . . . . . . Kills | -11 -10 -9 -8 -7 -7 -7 -6 -6 -6 ------- Run | Yrd Mat Mat Mat Fac Low Low Fac Was Fac Combat Hostiles Destroyed 34 | . 5 14 7 . 8 . . . . Guns 25 | . 5 11 7 . 2 . . . . Cannons 1 | . . 1 . . . . . . . AOE 7 | . . 1 . . 6 . . . . Classes Destroyed 12 | 1 4 2 4 . 1 . . . . Builder 1 | . . . 1 . . . . . . Hauler 2 | . 1 . . 1 . . . . . Recycler 2 | 1 . . 1 . . . . . . Watcher 3 | . 1 2 . . . . . . . Swarmer 12 | . 3 2 . . 7 . . . . Cutter 1 | . . . 1 . . . . . . Grunt 11 | . 2 6 3 . . . . . . Brawler 1 | . . 1 . . . . . . . Sentry 6 | . . 5 1 . . . . . . Hunter 1 | . . . 1 . . . . . . Programmer 1 | . . . . . 1 . . . . Heavy 1 | . . . 1 . . . . . . Best Kill Streak 6 | 1 3 5 2 1 6 . . . . Combat Bots Only 6 | . 2 5 2 . 6 . . . . Max Kills in Single Turn 2 | 1 1 2 1 1 2 . . . . Gunslinging 1 | . . 1 . . . . . . . Exploded 2 | . . 1 . . 2 . . . . Melee . | . . . . . . . . . . Uniques/NPCs Destroyed . | . . . . . . . . . . Combat | -11 -10 -9 -8 -7 -7 -7 -6 -6 -6 -------- Run | Yrd Mat Mat Mat Fac Low Low Fac Was Fac Hostile Shots Fired 625 | . 33 141 167 . 63 41 . 3 177 Missed 225 | . 11 50 53 . 27 16 . 1 67 Damage Taken 5565 | . 214 1222 1790 . 572 270 . 90 1407 Core 2069 | . 73 336 541 . 168 89 . 90 772 Absorbed by Shields . | . . . . . . . . . . Core Remaining (%) 50 | 100 70 16 1 . . 63 . . . Volleys Fired 125 | 2 16 40 24 9 20 1 . 11 2 Largest 3 | 2 2 2 3 1 2 1 . 2 1 Hottest 180 | 80 80 126 180 80 136 39 . 160 80 Shots Fired 226 | 4 32 79 52 9 29 1 . 18 2 Gun 215 | 4 32 78 52 4 25 . . 18 2 Cannon 7 | . . 1 . 5 . 1 . . . Launcher 4 | . . . . . 4 . . . . Special . | . . . . . . . . . . Kinetic 1 | . . . . . . 1 . . . Thermal 171 | . . 74 43 9 25 . . 18 2 Explosive 4 | . . . . . 4 . . . . Electromagnetic 50 | 4 32 5 9 . . . . . . Robot Hit Streak 17 | 1 8 17 12 4 11 11 . 15 4 Robot Miss Streak 10 | 1 3 3 10 4 4 . . 3 2 Penetration Max . | . . . . . . . . . . Secondary Targets 4 | . 3 1 . . . . . . . Max Gunslinging Chain 1 | . 1 1 . . . . . . . Shots Hit Robots 180 | 2 23 60 47 7 23 1 . 15 2 Core Hits 118 | 1 9 21 55 2 23 . . 6 1 Critical Kills 1 | . . . . 1 . . . . . Critical Parts Destroyed . | . . . . . . . . . . Critical Strikes 6 | . 1 1 1 1 1 . . 1 . Burn 4 | . . 1 1 . 1 . . 1 . Meltdown 1 | . . . . 1 . . . . . Corrupt 1 | . 1 . . . . . . . . Melee Attacks . | . . . . . . . . . . Impact . | . . . . . . . . . . Slashing . | . . . . . . . . . . Piercing . | . . . . . . . . . . Sneak Attacks . | . . . . . . . . . . Combat Hostiles . | . . . . . . . . . . Follow-up Attacks . | . . . . . . . . . . Damage Inflicted 3829 | 81 359 1048 772 145 974 17 . 371 62 Guns 2996 | 27 294 960 759 64 495 . . 371 26 Cannons 119 | . . 21 . 81 . 17 . . . Explosions 631 | 54 65 53 . . 459 . . . . Melee . | . . . . . . . . . . Ramming 83 | . . 14 13 . 20 . . . 36 Kinetic 17 | . . . . . . 17 . . . Thermal 2744 | 54 65 981 607 145 495 . . 371 26 Explosive 459 | . . . . . 459 . . . . Electromagnetic 526 | 27 294 53 152 . . . . . . Impact . | . . . . . . . . . . Slashing . | . . . . . . . . . . Piercing . | . . . . . . . . . . Highest Corruption 29 | . . 2 . . 6 6 . 29 29 Average Corruption 10 | . . 2 . . 5 6 . 15 29 Corruption Purged . | . . . . . . . . . . Corruption Blocked . | . . . . . . . . . . Effects 32 | . . 4 . . 4 . . 11 13 Message Errors 5 | . . 1 . . 1 . . 1 2 Matter Fused 6 | . . 1 . . . . . 2 3 Heat Flow Errors 5 | . . 1 . . . . . 2 2 Energy Discharges 3 | . . . . . . . . . 3 Data Loss (minor) 2 | . . . . . 1 . . 1 . Data Loss (major) 2 | . . 1 . . . . . 1 . Misfires 1 | . . . . . 1 . . . . Alerts 1 | . . . . . . . . 1 . Misdirections 6 | . . . . . . . . 3 3 Weapon Failures 1 | . . . . . 1 . . . . Overload Shots . | . . . . . . . . . . Overflow Damage 45 | . . . . . 45 . . . . Projectiles . | . . . . . . . . . . Explosions 45 | . . . . . 45 . . . . Melee . | . . . . . . . . . . Knockbacks . | . . . . . . . . . . Impact . | . . . . . . . . . . Kinetic . | . . . . . . . . . . Secondary . | . . . . . . . . . . Self-Inflicted Damage 23 | . . 6 . . 9 . . . 8 Shots . | . . . . . . . . . . Rammed 19 | . . 3 2 . 10 . . . 4 Targets Rammed 42 | . . 3 13 . 10 . . . 16 Kicked 23 | . . . 11 . . . . . 12 Crushed . | . . . . . . . . . . Highest Temperature 445 | 36 119 445 211 167 301 21 . 177 167 Average Temperature 99 | 20 53 135 77 76 116 21 . 43 80 Received Heat Transfer 1251 | . 60 420 450 . 135 60 . . 126 Effects 7 | . . 6 . . 1 . . . . Shutdowns 3 | . . 3 . . . . . . . Energy Bleed 2 | . . 2 . . . . . . . Matter Decay 1 | . . 1 . . . . . . . Short Circuit 1 | . . . . . 1 . . . . Siege Activations . | . . . . . . . . . . Robots Corrupted . | . . . . . . . . . . Combat Hostiles . | . . . . . . . . . . Parts Fried 1 | . 1 . . . . . . . . Impact Corruptions . | . . . . . . . . . . Robots Melted 2 | . . 1 . 1 . . . . . Combat Hostiles 1 | . . 1 . . . . . . . Parts Melted 9 | . 1 5 . 2 1 . . . . Heat Transferred 5665 | 100 100 2159 853 261 1183 . . 947 62 Parts Sabotaged . | . . . . . . . . . . Parts Stolen . | . . . . . . . . . . Parts Stripped . | . . . . . . . . . . Power Chain Reactions 4 | 1 2 1 . . . . . . . Alert | -11 -10 -9 -8 -7 -7 -7 -6 -6 -6 ------- Run | Yrd Mat Mat Mat Fac Low Low Fac Was Fac Peak Influence 400 | 5 274 400 379 145 . . 142 64 251 Initial 169 | . 3 115 169 63 . . 142 49 16 Average 186 | 1 135 277 244 112 . . 142 36 165 Maximum Alert Level 2 | . 1 2 1 . . . . . 1 Low Security (%) 61 | 100 61 27 48 100 . . 100 100 70 Level 1 38 | . 38 70 51 . . . . . 29 Level 2 . | . . 1 . . . . . . . Level 3 . | . . . . . . . . . . Level 4 . | . . . . . . . . . . Level 5 . | . . . . . . . . . . High Security . | . . . . . . . . . . Max Security . | . . . . . . . . . . Squads Dispatched 8 | . . 1 5 2 . . . . . Investigation 3 | . . 1 1 1 . . . . . Extermination . | . . . . . . . . . . Reinforcement 5 | . . . 4 1 . . . . . Assault . | . . . . . . . . . . Garrison . | . . . . . . . . . . Intercept . | . . . . . . . . . . Searches Triggered . | . . . . . . . . . . Construction Impeded 1 | . . . 1 . . . . . . Haulers Reinforced 1 | . . . . 1 . . . . . Active Scanning Responses . | . . . . . . . . . . Cargo Convoy Interrupts . | . . . . . . . . . . Stealth | -11 -10 -9 -8 -7 -7 -7 -6 -6 -6 --------- Run | Yrd Mat Mat Mat Fac Low Low Fac Was Fac Distress Signals 1 | . 1 . . . . . . . . Communications Jammed . | . . . . . . . . . . Distress Signals . | . . . . . . . . . . Times Spotted 111 | . 12 28 28 2 13 4 . 6 18 Peak Tracking Total 8 | . 3 6 8 1 8 4 . 6 8 Tactical Retreats 18 | . 2 1 5 . 2 . . 1 7 Traps | -11 -10 -9 -8 -7 -7 -7 -6 -6 -6 ------- Run | Yrd Mat Mat Mat Fac Low Low Fac Was Fac Traps Triggered 2 | . . 1 . . . . 1 . . Indirectly . | . . . . . . . . . . Trap Hack Attempts . | . . . . . . . . . . Triggered . | . . . . . . . . . . Disarmed . | . . . . . . . . . . Reprogrammed . | . . . . . . . . . . Reused . | . . . . . . . . . . Traps Extracted . | . . . . . . . . . . Installed . | . . . . . . . . . . Triggered . | . . . . . . . . . . Machines | -11 -10 -9 -8 -7 -7 -7 -6 -6 -6 ---------- Run | Yrd Mat Mat Mat Fac Low Low Fac Was Fac Machines Disabled 6 | . 3 2 . 1 . . . . . Max in Single Turn 3 | . 3 1 . 1 . . . . . Machines Repaired . | . . . . . . . . . . Machines Dismantled . | . . . . . . . . . . Machines Sabotaged . | . . . . . . . . . . Overloaded Fab Kills . | . . . . . . . . . . Hacking | -11 -10 -9 -8 -7 -7 -7 -6 -6 -6 --------- Run | Yrd Mat Mat Mat Fac Low Low Fac Was Fac Machines Accessed 11 | . 3 5 2 1 . . . . . Terminals 9 | . 3 3 2 1 . . . . . Fabricators . | . . . . . . . . . . Repair Stations . | . . . . . . . . . . Recycling Units 2 | . . 2 . . . . . . . Scanalyzers . | . . . . . . . . . . Garrison Access . | . . . . . . . . . . Total Hacks 37 | . 8 20 6 3 . . . . . Successful 14 | . 4 8 2 . . . . . . Failed 23 | . 4 12 4 3 . . . . . Catastrophic 6 | . 1 4 1 . . . . . . Database Lockouts . | . . . . . . . . . . Manual 1 | . . 1 . . . . . . . Terminals 29 | . 8 12 6 3 . . . . . Fabricators . | . . . . . . . . . . Repair Stations . | . . . . . . . . . . Recycling Units 8 | . . 8 . . . . . . . Scanalyzers . | . . . . . . . . . . Garrison Access . | . . . . . . . . . . Terminal Hacks 12 | . 4 6 2 . . . . . . Record 6 | . 2 2 2 . . . . . . Prototype ID Bank 2 | . 1 1 . . . . . . . Investigation Status 1 | . . 1 . . . . . . . Reinforcement Status 1 | . 1 . . . . . . . . Recall Investigation 1 | . . 1 . . . . . . . Zone Layout 1 | . . 1 . . . . . . . Fabricator Hacks . | . . . . . . . . . . Repair Station Hacks . | . . . . . . . . . . Recycling Unit Hacks 2 | . . 2 . . . . . . . Report Inventory 2 | . . 2 . . . . . . . Scanalyzer . | . . . . . . . . . . Garrison Access Hacks . | . . . . . . . . . . Unauthorized Hacks . | . . . . . . . . . . Terminals . | . . . . . . . . . . Fabricators . | . . . . . . . . . . Repair Stations . | . . . . . . . . . . Recycling Units . | . . . . . . . . . . Scanalyzers . | . . . . . . . . . . Garrison Access . | . . . . . . . . . . Data Cores Recovered . | . . . . . . . . . . Used . | . . . . . . . . . . Hacking Detections 9 | . 2 5 1 1 . . . . . Full Trace Events 8 | . 1 5 1 1 . . . . . Feedback Events . | . . . . . . . . . . Feedback Blocked . | . . . . . . . . . . Robot Schematics Acquired . | . . . . . . . . . . Robots Built . | . . . . . . . . . . Authchips . | . . . . . . . . . . Time . | . . . . . . . . . . Total Robot Build Rating . | . . . . . . . . . . Part Schematics Acquired . | . . . . . . . . . . Parts Built . | . . . . . . . . . . Authchips . | . . . . . . . . . . Time . | . . . . . . . . . . Total Part Build Rating . | . . . . . . . . . . Parts Repaired . | . . . . . . . . . . Time . | . . . . . . . . . . Parts Recycled . | . . . . . . . . . . Recycled Matter . | . . . . . . . . . . Retrieved Matter . | . . . . . . . . . . Retrieved Components . | . . . . . . . . . . Parts Scanalyzed . | . . . . . . . . . . Part Schematics Acquired . | . . . . . . . . . . Parts Damaged . | . . . . . . . . . . Bothacking | -11 -10 -9 -8 -7 -7 -7 -6 -6 -6 ------------ Run | Yrd Mat Mat Mat Fac Low Low Fac Was Fac Used RIF Installer . | . . . . . . . . . . Robots Hacked . | . . . . . . . . . . Non-combat . | . . . . . . . . . . Combat . | . . . . . . . . . . Robot Hacks Applied . | . . . . . . . . . . Relay Couplers Released . | . . . . . . . . . . Fabnet Peak Effective % . | . . . . . . . . . . Robots Rewired . | . . . . . . . . . . Allies Hacked . | . . . . . . . . . . Hacks Repelled . | . . . . . . . . . . Allies | -11 -10 -9 -8 -7 -7 -7 -6 -6 -6 -------- Run | Yrd Mat Mat Mat Fac Low Low Fac Was Fac Total Allies 1 | . . . . . . . . 1 . Largest Group 1 | . . . . . . . . 1 . Highest-Rated Group 31 | . . . . . . . . 31 . Highest-Rated Ally 31 | . . . . . . . . 31 . Total Orders . | . . . . . . . . . . Ally Attacks 6 | . . . . . . . . 6 . Total Damage 104 | . . . . . . . . 104 . Kills . | . . . . . . . . . . Allies Corrupted . | . . . . . . . . . . Allies Melted . | . . . . . . . . . . Intel | -11 -10 -9 -8 -7 -7 -7 -6 -6 -6 ------- Run | Yrd Mat Mat Mat Fac Low Low Fac Was Fac Robot Analysis Total . | . . . . . . . . . . Derelict Logs Recovered . | . . . . . . . . . . Drone Launches . | . . . . . . . . . . Drone Recoveries . | . . . . . . . . . . Exploration | -11 -10 -9 -8 -7 -7 -7 -6 -6 -6 ------------- Run | Yrd Mat Mat Mat Fac Low Low Fac Was Fac Turns Passed 2562 | 68 250 615 555 249 288 11 121 234 171 Spaces Moved 2870 | 56 206 471 398 545 587 11 152 279 165 Core 150 | 11 . . 63 32 . . . 37 7 Treads . | . . . . . . . . . . Legs 288 | . . . 64 . . . 69 62 93 Wheels 993 | 45 206 471 271 . . . . . . Hover . | . . . . . . . . . . Flight 1439 | . . . . 513 587 11 83 180 65 Fastest Speed 30 | 50 90 90 50 30 30 32 32 40 40 Average Speed 65 | 82 90 93 95 34 34 32 74 64 85 Slowest Speed 200 | 90 90 115 200 50 102 32 125 130 120 Overloaded Moves . | . . . . . . . . . . Propulsion Burnouts . | . . . . . . . . . . Robots Hopped 2 | . . . . . . . 1 1 . Cave-ins Triggered . | . . . . . . . . . . Exploration Rate (%) 30 | 4 35 40 38 15 72 4 4 86 7 Regions Visited 9 Branch Regions 2 Pre-discovered Areas . | . . . . . . . . . . Known Exits Taken . | . . . . . . . . . . Unknown Exits Taken 7 | 1 1 1 1 1 1 1 . . . Scrap Searched 4 | . . . . . 4 . . . . Spaces Dug . | . . . . . . . . . . Terrain Destroyed 45 | 2 6 4 . . 33 . . . . Melee . | . . . . . . . . . . Projectile . | . . . . . . . . . . AOE 45 | 2 6 4 . . 33 . . . . Terrain Rammed . | . . . . . . . . . . Walls Destroyed . | . . . . . . . . . . Machines Disabled . | . . . . . . . . . . Actions | -11 -10 -9 -8 -7 -7 -7 -6 -6 -6 --------- Run | Yrd Mat Mat Mat Fac Low Low Fac Was Fac Total 3314 | 73 239 567 520 597 640 17 162 309 190 Wait 93 | . 10 11 41 9 7 . . 13 2 Move 2858 | 55 205 470 397 544 586 10 150 276 165 Hop 2 | . . . . . . . 1 1 . Pick Up 67 | 9 5 20 10 9 7 . 4 2 1 Fast Attach 18 | . . 2 9 4 1 . . 1 1 Attach 62 | 6 1 12 14 14 4 2 2 4 3 Detach 13 | . . . 1 7 3 2 . . . Swap 7 | 1 . 2 3 . . 1 . . . Drop 27 | . 2 7 8 1 2 1 5 1 . Fire 125 | 2 16 40 24 9 20 1 . 11 2 Melee . | . . . . . . . . . . Ram 19 | . . 3 2 . 10 . . . 4 Kick 23 | . . . 11 . . . . . 12 Crush . | . . . . . . . . . . Escape Stasis . | . . . . . . . . . . Rewire . | . . . . . . . . . . Trap . | . . . . . . . . . . Miscellaneous . | . . . . . . . . . . Route ------- -11/Scrapyard -10/Materials -9/Materials -8/Materials -7/Factory -7/Lower Caves -7/Lower Caves -6/Factory -6/Waste -6/Factory History --------- Turn | Location | Event 6 | -11/Scrapyard | Discovered new exit (range 16) 69 | -11/Scrapyard | Entered Materials 307 | -10/Materials | Build established: Mutant 313 | -10/Materials | Discovered new exit (range 6) 319 | -10/Materials | Entered another Materials area 319 | -9/Materials | Evolved 2 slots: Power x1, Utility x1 489 | -9/Materials | Lost 3 parts (1u2w) 675 | -9/Materials | Lost 3 parts (2p1n) 711 | -9/Materials | Core integrity fell below 50% 776 | -9/Materials | Lost 4 parts (1p1u2w) 921 | -9/Materials | Discovered new exit (range 16) 933 | -9/Materials | Core integrity fell below 20% 934 | -9/Materials | Entered another Materials area 934 | -8/Materials | Evolved 2 slots: Propulsion x1, Weapon x1 1208 | -8/Materials | Lost 3 parts (2p1w) 1299 | -8/Materials | Core integrity fell below 50% 1338 | -8/Materials | Lost 8 parts (1p2n1u4w) 1459 | -8/Materials | Core integrity fell below 20% 1483 | -8/Materials | Discovered new exit (range 14) 1489 | -8/Materials | Entered Factory 1489 | -7/Factory | Evolved 2 slots: Power x1, Utility x1 1492 | -7/Factory | Lost 11 parts (1p3n4u3w) 1701 | -7/Factory | Discovered new exit (range 5) 1738 | -7/Factory | Entered Lower Caves 1940 | -7/Lower Caves | Lost 3 parts (1p1n1u) 2013 | -7/Lower Caves | Discovered new exit (range 8) 2026 | -7/Lower Caves | Entered another Lower Caves area 2028 | -7/Lower Caves | Attracted the attention of an 0b10 checkpoint 2033 | -7/Lower Caves | Discovered new exit (range 9) 2037 | -7/Lower Caves | Entered Factory 2037 | -6/Factory | Evolved 2 slots: Utility x1, Weapon x1 2158 | -6/Factory | Sucked down chute 2158 | -6/Factory | Entered Waste 2159 | -6/Waste | Met a frightened Derelict 2173 | -6/Waste | EMP discharged 2174 | -6/Waste | Spotted C-40 Crusher 2234 | -6/Waste | Spotted C-40 Crusher 2265 | -6/Waste | Crushed by Compactor (1 part destroyed, 2 dropped) 2268 | -6/Waste | Crushed by Compactor (1 part destroyed, 2 dropped) 2273 | -6/Waste | EMP discharged 2273 | -6/Waste | System corruption reached 10% 2273 | -6/Waste | Spotted C-40 Crusher 2273 | -6/Waste | Spotted C-40 Crusher 2281 | -6/Waste | Spotted C-40 Crusher 2324 | -6/Waste | Spotted C-40 Crusher 2372 | -6/Waste | Discovered new exit (range 13) 2373 | -6/Waste | EMP discharged 2392 | -6/Waste | Entered Factory 2432 | -6/Factory | Core integrity fell below 50% 2469 | -6/Factory | Lost 3 parts (1n2w) 2515 | -6/Factory | Core integrity fell below 20% 2563 | -6/Factory | Destroyed by S-27 Virus with Autogun Last Messages --------------- 02443_ System corrupted: Energy discharge (-42). 02459_ >XA5#78EAHCJ,6QXK9VUINWO VTM, K/K 02471_ Kicked S-27 Virus out of the way. 02473_ Kicked S-27 Virus. 02475_ Kicked S-27 Virus out of the way. 02477_ J8Y#JCKTQ/KHYNRC09PEM&GX|VL1LNEFPL#J 02477_ Kicked S-27 Virus. 02481_ Kicked S-27 Virus out of the way. 02482_ Kicked S-27 Virus. 02483_ Kicked S-27 Virus out of the way. 02484_ Kicked S-27 Virus. 02488_ Flexi-carbon Leg destroyed. 02491_ Lgt. Fission Core destroyed. 02494_ System corrupted: Matter fused (-6). 02511_ System corrupted: Matter fused (-10). 02526_ System corrupted: Heat flow error (+188). 02542_ System corrupted: Energy discharge (-38). 02558_ Arm. Leg destroyed. 02559_ Slammed into S-27 Virus. 02563_ U-05 Engineer destroyed. Map ----- +----------------------------------------------------+ | """ #???????????????????????????????????????????? | | ?????????????????????????????????????????????? | | ???????####???????????????????????????????????? | | ????????#T"#???###?????????????????????????????? | | ########### "####T ######????????????????????????? | | #????????????????????????? | | #????????????????????????? | | +????????????????????????? | | #????????????????????????? | | #????????????????????????? | | #######+#####+######### #????????????????????????? | | #?# # #????????????????????????? | | #?# """ """ + #????????????????????????? | | # + """ """ # #????????????????????????? | | ### """ """ ! # #????????????????????????? | | #?# # #????????????????????????? | | """ #?# """ """ # #????????????????????????? | | """"" #?# """ """ # #????????????????????????? | | """"" #?# """ """ # #????????????????????????? | | #???? # #????????????????????????? | | #########?????" """ # #????????????????????????? | | ??????????????" """ # #?????? ###### ?????????? | | ????????????""" """ # ###### ?????????? | | ??????????# + s T | k H???????? | | ???????????????######### !% ????????? | | ???????????????????????# @ u###?????????????? | | ???????????????????????# """" #???????????????? | | ???????????????????????# """" #???????????????? | | ???????????????????????# """" #???????????????? | | ???????????????????????# """" ??#???????????????? | | ???????????????????????# """"???????????????????? | | ???????????????????????# """????????????????????? | | ???????????????????????# ""?????????????????????? | | ???????????????????????# ?????????????????????? | | ???????????????????????# ??????????????????????? | | ???????????????????????# ??????????????????????? | | ???????????????????????# ??????????????????????? | | ???????????????????????# ??????????????????????? | | ???????????????????????? ??????????????????????? | | ???????????????????????? ??????????????????????? | | ????????????????????????###??????????????????????? | | ?????????????????????????????????????????????????? | | ?????????????????????????????????????????????????? | | ?????????????????????????????????????????????????? | | ?????????????????????????????????????????????????? | | ?????????????????????????????????????????????????? | | ?????????????????????????????????????????????????? | | ?????????????????????????????????????????????????? | | ?????????????????????????????????????????????????? | | ?????????????????????????????????????????????????? | +----------------------------------------------------+ Best States ------------- Heat Dissipation 61 Energy Generation 21 Energy Capacity 305 Matter Stores 300 Matter Capacity 300 Sight Range 16 Terrain Scan Density 10 Additional Mass Support 6 Armor Coverage 150 Evasion (%) 64 Targeting Accuracy 8 Energy Filtering 30 Particle Charging 15 Item Schematics ----------------- None Robot Schematics ------------------ None Fabricated ------------ Nothing Alien Tech Used ----------------- None Achievements -------------- None Challenges ------------ None Game ------ Seed LaserIntegrityTriangulator Manual? 0 Play Time 01:03:44 Cumulative 13.9 hours Start 2024.08.25 @ 15:26:27 End 2024.08.25 @ 16:30:12 Sessions 1 Manual Loads 0 Difficulty Rogue Special Mode None Game No. 16 Rogue 16 Adventurer 0 Explorer 0 Win Type - Total 0 Types 0/0/0/0/0/0/0/0/0 Lore% 3 Gallery% 14 Achievement% 14 Wizard Run 0 Options --------- Layout 1 ASCII 0 Keyboard 0 Movement Numpad Keybinds 0 Fullscreen 2 Font 24/Smallcaps Map View 50x35 Zoom Use 0% Tactical HUD 1 Map Filters NONE Filters NONE Steam 1 RUN: 32d071b7-1431-484d-a3f2-1f025a13bbf5